fUSD/lending_fUSD_20250923
["ID","MTS","AMOUNT","RATE_DAILY","PERIOD"]
[387162481,1758599477368,-400.0,0.00020805,2]
[387162482,1758599477379,-400.0,0.00020805,2]
[387162483,1758599477389,-400.0,0.00020805,2]
[387162484,1758599477400,-400.0,0.00020805,2]
[387162485,1758599477413,-402.81480768,0.00020805,2]
[387162486,1758599477423,-400.0,0.00020805,2]
[387162487,1758599477434,-400.0,0.00020805,2]
[387162488,1758599477445,-400.0,0.00020805,2]
[387162489,1758599477456,-400.0,0.00020805,2]
[387162490,1758599477467,-461.75,0.00020805,2]
[387162491,1758599477478,-400.0,0.00020805,2]
[387162492,1758599477489,-400.0,0.00020805,2]
[387162493,1758599477500,-400.0,0.00020805,2]
[387162494,1758599477510,-400.0,0.00020805,2]
[387162495,1758599477521,-400.0,0.00020805,2]
[387162496,1758599477533,-400.0,0.00020805,2]
[387162497,1758599477545,-400.0,0.00020805,2]
[387162498,1758599477556,-533.26,0.00020805,2]
[387162499,1758599477567,-404.77602517,0.00020805,2]
[387162500,1758599477578,-400.0,0.00020805,2]
[387162501,1758599477592,-400.0,0.00020805,2]
[387162502,1758599477603,-400.0,0.00020805,2]
[387162503,1758599477615,-506.27,0.00020805,2]
[387162504,1758599477626,-516.01,0.00020805,2]
[387162505,1758599477637,-400.0,0.00020805,2]
[387162506,1758599477648,-400.0,0.00020805,2]
[387162507,1758599477658,-400.0,0.00020805,2]
[387162508,1758599477669,-619.8,0.00020805,2]
[387162509,1758599477680,-413.15,0.00020805,2]
[387162510,1758599477691,-400.0,0.00020805,2]
[387162511,1758599477704,-358.13882915,0.00020805,2]
[387162512,1758599477716,-400.0,0.00020805,2]
[387162513,1758599477728,-400.0,0.00020805,2]
[387162514,1758599477739,-500.0,0.00020805,2]
[387162515,1758599477752,-400.0,0.00020805,2]
[387162516,1758599477763,-400.0,0.00020805,2]
[387162517,1758599477775,-400.0,0.00020805,2]
[387162518,1758599477785,-400.0,0.00020805,2]
[387162519,1758599477797,-474.53867826,0.00020805,2]
[387162520,1758599477809,-567.91,0.00020805,2]
[387162521,1758599477819,-452.15,0.00020805,2]
[387162522,1758599477830,-517.39,0.00020805,2]
[387162523,1758599477840,-400.0,0.00020805,2]
[387162524,1758599477851,-400.0,0.00020805,2]
[387162525,1758599477861,-400.0,0.00020805,2]
[387162526,1758599477872,-400.0,0.00020805,2]
[387162527,1758599477882,-400.0,0.00020805,2]
[387162528,1758599477891,-413.39,0.00020805,2]
[387162529,1758599477901,-400.0,0.00020805,2]
[387162530,1758599477912,-400.0,0.00020805,2]
[387162531,1758599477922,-446.93488224,0.00020805,2]
[387162532,1758599477932,-400.0,0.00020805,2]
[387162533,1758599477943,-500.0,0.00020805,2]
[387162534,1758599477952,-367.46577538,0.00020805,2]
[387162535,1758599477962,-400.0,0.00020805,2]
[387162536,1758599477972,-400.0,0.00020805,2]
[387162537,1758599477983,-400.0,0.00020805,2]
[387162538,1758599477994,-440.34,0.00020805,2]
[387162539,1758599478005,-400.0,0.00020805,2]
[387162540,1758599478016,-400.0,0.00020805,2]
[387162541,1758599478027,-828.72,0.00020805,2]
[387162542,1758599478037,-400.0,0.00020805,2]
[387162543,1758599478048,-535.84,0.00020805,2]
[387162544,1758599478060,-400.0,0.00020805,2]
[387162545,1758599478069,-400.0,0.00020805,2]
[387162546,1758599478081,-430.22,0.00020805,2]
[387162547,1758599478091,-400.0,0.00020805,2]
[387162548,1758599478102,-400.0,0.00020805,2]
[387162549,1758599478111,-400.0,0.00020805,2]
[387162550,1758599478126,-400.0,0.00020805,2]
[387162551,1758599478137,-400.0,0.00020805,2]
[387162552,1758599478148,-400.0,0.00020805,2]
[387162553,1758599478159,-400.0,0.00020805,2]
[387162554,1758599478169,-400.0,0.00020805,2]
[387162555,1758599478181,-400.0,0.00020805,2]
[387162556,1758599478192,-214.99700125,0.00020805,2]
[387162557,1758599478203,-400.0,0.00020805,2]
[387162558,1758599478216,-583.8,0.00020805,2]
[387162559,1758599478226,-400.0,0.00020805,2]
[387162560,1758599478237,-400.0,0.00020805,2]
[387162561,1758599478249,-400.0,0.00020805,2]
[387162562,1758599478260,-400.0,0.00020805,2]
[387162563,1758599478272,-400.0,0.00020805,2]
[387162564,1758599478283,-632.87,0.00020805,2]
[387162565,1758599478294,-400.0,0.00020805,2]
[387162566,1758599478306,-371.83952322,0.00020805,2]
[387162567,1758599478317,-400.0,0.00020805,2]
[387162568,1758599478329,-400.0,0.00020805,2]
[387162569,1758599478341,-400.0,0.00020805,2]
[387162570,1758599478352,-400.0,0.00020805,2]
[387162571,1758599478363,-400.0,0.00020805,2]
[387162572,1758599478375,-400.0,0.00020805,2]
[387162573,1758599478386,-400.0,0.00020805,2]
[387162574,1758599478397,-400.0,0.00020805,2]
[387162575,1758599478409,-400.0,0.00020805,2]
[387162576,1758599478422,-400.0,0.00020805,2]
[387162577,1758599478433,-946.57,0.00020805,2]
[387162578,1758599478445,-405.73,0.00020805,2]
[387162579,1758599478457,-400.0,0.00020805,2]
[387162580,1758599478467,-400.0,0.00020805,2]
[387162581,1758599478480,-400.0,0.00020805,2]
[387162582,1758599478492,-400.0,0.00020805,2]
[387162583,1758599478505,-197.160719,0.00020805,2]
[387162584,1758599478516,-400.0,0.00020805,2]
[387162585,1758599478526,-400.0,0.00020805,2]
[387162586,1758599478538,-400.0,0.00020805,2]
[387162587,1758599478548,-400.0,0.00020805,2]
[387162588,1758599478561,-396.54998119,0.00020805,2]
[387162589,1758599478572,-400.0,0.00020805,2]
[387162590,1758599478583,-400.0,0.00020805,2]
[387162591,1758599478595,-400.0,0.00020805,2]
[387162592,1758599478606,-237.35301413,0.00020805,2]
[387162593,1758599478617,-1639.45,0.00020805,2]
[387162594,1758599478627,-400.0,0.00020805,2]
[387162595,1758599478639,-290.06264034,0.00020805,2]
[387162596,1758599478650,-2055.47,0.00020805,2]
[387162597,1758599478661,-1291.07,0.00020805,2]
[387162598,1758599478672,-400.0,0.00020805,2]
[387162599,1758599478683,-1500.12,0.00020805,2]
[387162600,1758599478694,-400.0,0.00020805,2]
[387162601,1758599478705,-400.0,0.00020805,2]
[387162602,1758599478717,-1217.73,0.00020805,2]
[387162603,1758599478729,-400.0,0.00020805,2]
[387162604,1758599478739,-400.0,0.00020805,2]
[387162605,1758599478753,-400.0,0.00020805,2]
[387162606,1758599478949,-1110.27,0.00020805,2]
[387162607,1758599478960,-400.0,0.00020805,2]
[387162608,1758599478971,-400.0,0.00020805,2]
[387162609,1758599478981,-400.0,0.00020805,2]
[387162610,1758599478991,-400.0,0.00020805,2]
[387162611,1758599479002,-729.86,0.00020805,2]
[387162612,1758599479014,-400.0,0.00020805,2]
[387162613,1758599479025,-400.0,0.00020805,2]
[387162614,1758599479035,-681.6,0.00020805,2]
[387162615,1758599479046,-400.0,0.00020805,2]
[387162616,1758599479057,-400.0,0.00020805,2]
[387162617,1758599479070,-551.01,0.00020805,2]
[387162618,1758599479082,-562.71,0.00020805,2]
[387162619,1758599479095,-400.0,0.00020805,2]
[387162620,1758599479106,-400.0,0.00020805,2]
[387162621,1758599479121,-2433.58,0.00020805,2]
[387162622,1758599479132,-400.0,0.00020805,2]
[387162623,1758599479143,-400.0,0.00020805,2]
[387162624,1758599479154,-3698.27,0.00020805,2]
[387162625,1758599479167,-3927.52,0.00020805,2]
[387162626,1758599479179,-400.0,0.00020805,2]
[387162627,1758599479190,-418.6,0.00020805,2]
[387162628,1758599479201,-1467.03,0.00020805,2]
[387162629,1758599479212,-830.82,0.00020805,2]
[387162630,1758599479225,-400.0,0.00020805,2]
[387162631,1758599479236,-400.0,0.00020805,2]
[387162632,1758599479248,-842.57,0.00020805,2]
[387162633,1758599479260,-400.0,0.00020805,2]
[387162634,1758599479271,-400.0,0.00020805,2]
[387162635,1758599479284,-400.0,0.00020805,2]
[387162636,1758599479295,-400.0,0.00020805,2]
[387162637,1758599479307,-503.7,0.00020805,2]
[387162638,1758599479318,-452.55,0.00020805,2]
[387162639,1758599479331,-1208.87,0.00020805,2]
[387162640,1758599479342,-488.41,0.00020805,2]
[387162641,1758599479354,-1285.27,0.00020805,2]
[387162642,1758599479366,-1331.96,0.00020805,2]
[387162643,1758599479376,-400.0,0.00020805,2]
[387162644,1758599479387,-2079.04,0.00020805,2]
[387162645,1758599479398,-400.0,0.00020805,2]
[387162646,1758599479410,-1336.69,0.00020805,2]
[387162647,1758599479422,-400.0,0.00020805,2]
[387162648,1758599479432,-3097.42,0.00020805,2]
[387162649,1758599479445,-400.0,0.00020805,2]
[387162650,1758599479455,-191.56398083,0.00020806,2]
[387162651,1758599479465,-408.59,0.00020806,2]
[387162652,1758599479476,-1564.56139073,0.00020818,2]
[387162653,1758599479486,-400.0,0.0002082,2]
[387162654,1758599479496,-400.0,0.0002082,2]
[387162655,1758599479506,-400.0,0.0002082,2]
[387162656,1758599479517,-400.0,0.0002082,2]
[387162657,1758599479528,-198.75765076,0.0002082,2]
[387162658,1758599479539,-161.47951044,0.0002082,2]
[387162659,1758599479550,-400.0,0.0002082,2]
[387162660,1758599479561,-400.0,0.0002082,2]
[387162661,1758599479574,-1282.24,0.0002082,2]
[387162662,1758599479584,-556.35,0.0002082,2]
[387162663,1758599479596,-689.52,0.0002082,2]
[387162664,1758599479607,-610.52,0.0002082,2]
[387162665,1758599479618,-6754.1,0.0002082,2]
[387162666,1758599479630,-400.0,0.0002082,2]
[387162667,1758599479644,-660.13,0.0002082,2]
[387162668,1758599479655,-765.23,0.0002082,2]
[387162669,1758599479667,-678.41,0.0002082,2]
[387162670,1758599479677,-977.52,0.0002082,2]
[387162671,1758599479690,-1027.79,0.0002082,2]
[387162672,1758599479702,-565.29,0.0002082,2]
[387162673,1758599479715,-725.67,0.0002082,2]
[387162674,1758599479727,-853.75,0.0002082,2]
[387162675,1758599479738,-480.0,0.0002082,2]
[387162676,1758599479751,-479.48,0.0002082,2]
[387162677,1758599479764,-400.0,0.0002082,2]
[387162678,1758599479775,-727.04,0.0002082,2]
[387162679,1758599479786,-644.89,0.0002082,2]
[387162680,1758599479797,-400.0,0.0002082,2]
[387162681,1758599479807,-1008.09846358,0.00020821,2]
[387162682,1758599479817,-507.70190553,0.00020821,2]
[387162683,1758599479827,-500.0,0.00020821,2]
[387162684,1758599479838,-571.03054024,0.00020821,2]
[387162685,1758599479848,-12301.60509355,0.00020857,2]
[387162686,1758599479859,-10589.88579283,0.00020857,2]
[387162687,1758599479870,-500.0,0.00020873,2]
[387162688,1758599479881,-500.0,0.00020873,2]
[387162689,1758599479892,-500.0,0.00020873,2]
[387162690,1758599479904,-501.74024584,0.00020873,2]
[387162691,1758599479916,-500.47935389,0.00020873,2]
[387162692,1758599479927,-500.0,0.00020873,2]
[387162693,1758599479940,-501.98399225,0.00020873,2]
[387162694,1758599479951,-500.0,0.00020873,2]
[387162695,1758599479961,-206.83664962,0.00020873,2]
[387162696,1758599479972,-500.0,0.00020873,2]
[387162697,1758599479983,-500.0,0.00020873,2]
[387162698,1758599479993,-500.0,0.00020873,2]
[387162699,1758599480004,-500.0,0.00020873,2]
[387162700,1758599480014,-500.0,0.00020873,2]
[387162701,1758599480024,-500.0,0.00020873,2]
[387162702,1758599480036,-534.07223647,0.00020873,2]
[387162703,1758599480049,-500.0,0.00020873,2]
[387162704,1758599480061,-500.0,0.00020873,2]
[387162705,1758599480072,-500.0,0.00020873,2]
[387162706,1758599480085,-500.0,0.00020873,2]
[387162707,1758599480097,-953.75,0.00020874,2]
[387162708,1758599480108,-1610.59,0.00020874,2]
[387162709,1758599480123,-300.0,0.00020913,2]
[387162710,1758599480134,-500.0,0.00020979,2]
[387162711,1758599480146,-516.01,0.00020979,2]
[387162712,1758599480159,-500.0,0.00020979,2]
[387162713,1758599480170,-1000.0,0.00020986,2]
[387162714,1758599480181,-1000.0,0.00020999,2]
[387162715,1758599480193,-868.82971802,0.00021,5]
[387162716,1758599480204,-2611.56377467,0.00021,2]
[387162717,1758599480215,-7689.90392739,0.00021,2]
[387162718,1758599480227,-758.49,0.0002106,2]
[387162719,1758599480240,-500.0,0.0002107,2]
[387162720,1758599480251,-328.33344359,0.00021073,2]
[387162721,1758599480263,-500.0,0.00021073,2]
[387162722,1758599480275,-500.0,0.00021073,2]
[387162723,1758599480288,-500.0,0.00021073,2]
[387162724,1758599480300,-500.0,0.00021073,2]
[387162725,1758599480314,-400.0,0.00021077,2]
[387162726,1758599480325,-400.0,0.00021077,2]
[387162727,1758599480337,-1127.7,0.00021077,2]
[387162728,1758599480348,-400.0,0.00021077,2]
[387162729,1758599480359,-400.0,0.00021077,2]
[387162730,1758599480371,-886.69,0.00021077,2]
[387162731,1758599480383,-459.76,0.00021077,2]
[387162732,1758599480395,-333.37652356,0.00021077,2]
[387162733,1758599480406,-500.0,0.00021077,2]
[387162734,1758599480417,-1941.69,0.00021077,2]
[387162735,1758599480429,-400.0,0.00021077,2]
[387162736,1758599480440,-485.76,0.00021077,2]
[387162737,1758599480452,-400.0,0.00021077,2]
[387162738,1758599480463,-400.0,0.00021077,2]
[387162739,1758599480475,-583.75,0.00021077,2]
[387162740,1758599480487,-467.25,0.00021077,2]
[387162741,1758599480499,-152.99467,0.00021077,2]
[387162742,1758599480512,-441.48,0.00021077,2]
[387162743,1758599480523,-400.0,0.00021077,2]
[387162744,1758599480534,-455.77174733,0.00021078,2]
[387162745,1758599480545,-256.37360375,0.00021078,2]
[387162746,1758599480558,-200.0,0.00021078,2]
[387162747,1758599480569,-500.0,0.00021078,2]
[387162748,1758599480580,-500.0,0.00021078,2]
[387162749,1758599480593,-1574.0,0.00021078,2]
[387162750,1758599480604,-500.0,0.00021078,2]
[387162751,1758599480615,-500.0,0.00021078,2]
[387162752,1758599480627,-486.0,0.00021078,2]
[387162753,1758599480637,-500.0,0.00021078,2]
[387162754,1758599480647,-452.92,0.00021078,2]
[387162755,1758599480658,-400.0,0.00021078,2]
[387162756,1758599480671,-400.0,0.00021078,2]
[387162757,1758599480682,-248.69229015,0.00021078,2]
[387162758,1758599480693,-400.0,0.00021078,2]
[387162759,1758599480704,-221.66819296,0.00021078,2]
[387162760,1758599480716,-500.0,0.00021078,2]
[387162761,1758599480727,-400.0,0.00021078,2]
[387162762,1758599480738,-400.0,0.00021078,2]
[387162763,1758599480749,-400.0,0.00021078,2]
[387162764,1758599480760,-400.0,0.00021078,2]
[387162765,1758599480771,-591.69,0.00021078,2]
[387162766,1758599480782,-532.85038374,0.00021078,2]
[387162767,1758599480792,-400.0,0.00021078,2]
[387162768,1758599480803,-400.0,0.00021078,2]
[387162769,1758599480815,-451.15,0.00021078,2]
[387162770,1758599480825,-400.0,0.00021078,2]
[387162771,1758599480835,-648.42,0.00021078,2]
[387162772,1758599480846,-529.25,0.00021078,2]
[387162773,1758599480856,-400.0,0.00021078,2]
[387162774,1758599480867,-400.18,0.00021078,2]
[387162775,1758599480879,-502.92,0.00021078,2]
[387162776,1758599480890,-648.28,0.00021078,2]
[387162777,1758599480901,-400.0,0.00021078,2]
[387162778,1758599480912,-400.0,0.00021078,2]
[387162779,1758599480923,-407.85,0.00021078,2]
[387162780,1758599480933,-400.0,0.00021078,2]
[387162781,1758599480945,-506.63,0.00021078,2]
[387162782,1758599480956,-400.0,0.00021078,2]
[387162783,1758599480967,-400.0,0.00021078,2]
[387162784,1758599480977,-400.0,0.00021078,2]
[387162785,1758599480988,-572.48,0.00021078,2]
[387162786,1758599480999,-400.0,0.00021078,2]
[387162787,1758599481010,-531.14,0.00021078,2]
[387162788,1758599481020,-400.0,0.00021078,2]
[387162789,1758599481031,-400.0,0.00021078,2]
[387162790,1758599481041,-400.0,0.00021078,2]
[387162791,1758599481052,-481.06,0.00021078,2]
[387162792,1758599481064,-400.0,0.00021078,2]
[387162793,1758599481075,-400.0,0.00021078,2]
[387162794,1758599481086,-400.0,0.00021078,2]
[387162795,1758599481096,-400.0,0.00021078,2]
[387162796,1758599481107,-400.0,0.00021078,2]
[387162797,1758599481117,-400.0,0.00021078,2]
[387162798,1758599481128,-495.86,0.00021078,2]
[387162799,1758599481139,-400.0,0.00021078,2]
[387162800,1758599481150,-538.36,0.00021078,2]
[387162801,1758599481160,-400.0,0.00021078,2]
[387162802,1758599481171,-212.75492082,0.00021078,2]
[387162803,1758599481183,-400.0,0.00021078,2]
[387162804,1758599481194,-400.0,0.00021078,2]
[387162805,1758599481206,-400.0,0.00021078,2]
[387162806,1758599481218,-625.8,0.00021078,2]
[387162807,1758599481229,-488.53,0.00021078,2]
[387162808,1758599481241,-400.0,0.00021078,2]
[387162809,1758599481252,-772.75,0.00021078,2]
[387162810,1758599481268,-400.0,0.00021078,2]
[387162811,1758599481280,-305.70421811,0.00021078,2]
[387162812,1758599481292,-417.71,0.00021078,2]
[387162813,1758599481304,-400.0,0.00021078,2]
[387162814,1758599481316,-400.0,0.00021078,2]
[387162815,1758599481328,-404.63,0.00021078,2]
[387162816,1758599481339,-400.0,0.00021078,2]
[387162817,1758599481351,-400.0,0.00021078,2]
[387162818,1758599481362,-400.0,0.00021078,2]
[387162819,1758599481373,-400.0,0.00021078,2]
[387162820,1758599481384,-472.84,0.00021078,2]
[387162821,1758599481397,-400.0,0.00021078,2]
[387162822,1758599481409,-518.82,0.00021078,2]
[387162823,1758599481422,-400.0,0.00021078,2]
[387162824,1758599481435,-462.72,0.00021078,2]
[387162825,1758599481446,-400.0,0.00021078,2]
[387162826,1758599481459,-400.0,0.00021078,2]
[387162827,1758599481471,-400.0,0.00021078,2]
[387162828,1758599481482,-670.29,0.00021078,2]
[387162829,1758599481497,-400.0,0.00021078,2]
[387162830,1758599481509,-400.0,0.00021078,2]
[387162831,1758599481522,-406.67644255,0.00021078,2]
[387162832,1758599481533,-400.0,0.00021078,2]
[387162833,1758599481548,-403.07228852,0.00021078,2]
[387162834,1758599481559,-476.37,0.00021078,2]
[387162835,1758599481570,-400.0,0.00021078,2]
[387162836,1758599481584,-400.0,0.00021078,2]
[387162837,1758599481598,-744.89,0.00021078,2]
[387162838,1758599481609,-400.0,0.00021078,2]
[387162839,1758599481620,-525.4877552,0.00021078,2]
[387162840,1758599481632,-676.77,0.00021078,2]
[387162841,1758599481642,-400.0,0.00021078,2]
[387162842,1758599481654,-560.87,0.00021078,2]
[387162843,1758599481669,-182.00179352,0.00021078,2]
[387162844,1758599481681,-1924.89,0.00021078,2]
[387162845,1758599481692,-400.0,0.00021078,2]
[387162846,1758599481702,-400.0,0.00021078,2]
[387162847,1758599481713,-400.0,0.00021078,2]
[387162848,1758599481725,-400.0,0.00021078,2]
[387162849,1758599481737,-788.66,0.00021078,2]
[387162850,1758599481747,-400.0,0.00021078,2]
[387162851,1758599481759,-400.0,0.00021078,2]
[387162852,1758599481770,-782.22,0.00021078,2]
[387162853,1758599481781,-400.0,0.00021078,2]
[387162854,1758599481791,-407.39,0.00021078,2]
[387162855,1758599481802,-400.0,0.00021078,2]
[387162856,1758599481813,-400.0,0.00021078,2]
[387162857,1758599481823,-251.09789077,0.00021078,2]
[387162858,1758599481833,-400.0,0.00021078,2]
[387162859,1758599481843,-665.54,0.00021078,2]
[387162860,1758599481854,-400.0,0.00021078,2]
[387162861,1758599481865,-298.52879285,0.00021078,2]
[387162862,1758599481875,-400.0,0.00021078,2]
[387162863,1758599481886,-400.0,0.00021078,2]
[387162864,1758599481897,-643.5,0.00021078,2]
[387162865,1758599481917,-400.0,0.00021078,2]
[387162866,1758599481931,-578.36,0.00021078,2]
[387162867,1758599481943,-517.24119859,0.00021078,2]
[387162868,1758599481955,-708.62,0.00021078,2]
[387162869,1758599481968,-400.0,0.00021078,2]
[387162870,1758599481981,-406.12558923,0.00021078,2]
[387162871,1758599481993,-639.18,0.00021078,2]
[387162872,1758599482003,-540.94,0.00021078,2]
[387162873,1758599482013,-400.0,0.00021078,2]
[387162874,1758599482023,-400.0,0.00021078,2]
[387162875,1758599482034,-572.8,0.00021078,2]
[387162876,1758599482046,-400.0,0.00021078,2]
[387162877,1758599482058,-510.44,0.00021078,2]
[387162878,1758599482069,-400.0,0.00021078,2]
[387162879,1758599482080,-540.49,0.00021078,2]
[387162880,1758599482091,-400.0,0.00021078,2]
[387162881,1758599482103,-400.0,0.00021078,2]
[387162882,1758599482115,-400.0,0.00021078,2]
[387162883,1758599482128,-606.87,0.00021078,2]
[387162884,1758599482139,-1361.87,0.00021078,2]
[387162885,1758599482150,-1031.45,0.00021078,2]
[387162886,1758599482162,-400.0,0.00021078,2]
[387162887,1758599482173,-400.0,0.00021078,2]
[387162888,1758599482184,-400.0,0.00021078,2]
[387162889,1758599482195,-400.0,0.00021078,2]
[387162890,1758599482207,-2551.63,0.00021078,2]
[387162891,1758599482220,-400.0,0.00021078,2]
[387162892,1758599482232,-465.41,0.00021078,2]
[387162893,1758599482244,-432.15,0.00021078,2]
[387162894,1758599482256,-463.33,0.00021078,2]
[387162895,1758599482266,-1375.3,0.00021078,2]
[387162896,1758599482277,-400.0,0.00021078,2]
[387162897,1758599482290,-512.51,0.00021078,2]
[387162898,1758599482302,-758.25,0.00021078,2]
[387162899,1758599482314,-400.0,0.00021078,2]
[387162900,1758599482325,-400.0,0.00021078,2]
[387162901,1758599482336,-400.0,0.00021078,2]
[387162902,1758599482349,-407.70704959,0.00021078,2]
[387162903,1758599482361,-400.0,0.00021078,2]
[387162904,1758599482373,-400.0,0.00021078,2]
[387162905,1758599482385,-400.0,0.00021078,2]
[387162906,1758599482397,-400.0,0.00021078,2]
[387162907,1758599482409,-400.0,0.00021078,2]
[387162908,1758599482421,-1206.33,0.00021078,2]
[387162909,1758599482433,-400.0,0.00021078,2]
[387162910,1758599482445,-400.0,0.00021078,2]
[387162911,1758599482457,-400.0,0.00021078,2]
[387162912,1758599482469,-2150.93,0.00021078,2]
[387162913,1758599482479,-440.18,0.00021078,2]
[387162914,1758599482491,-572.11,0.00021078,2]
[387162915,1758599482501,-400.0,0.00021078,2]
[387162916,1758599482512,-400.0,0.00021078,2]
[387162917,1758599482522,-400.0,0.00021078,2]
[387162918,1758599482534,-400.0,0.00021078,2]
[387162919,1758599482544,-985.98,0.00021078,2]
[387162920,1758599482556,-401.95,0.00021078,2]
[387162921,1758599482568,-824.43,0.00021078,2]
[387162922,1758599482581,-400.0,0.00021078,2]
[387162923,1758599482592,-400.0,0.00021078,2]
[387162924,1758599482604,-400.0,0.00021078,2]
[387162925,1758599482615,-408.55,0.00021078,2]
[387162926,1758599482626,-163.70816145,0.00021078,2]
[387162927,1758599482637,-400.0,0.00021078,2]
[387162928,1758599482648,-594.13,0.00021078,2]
[387162929,1758599482660,-400.0,0.00021078,2]
[387162930,1758599482672,-400.0,0.00021078,2]
[387162931,1758599482683,-661.14,0.00021078,2]
[387162932,1758599482695,-955.85,0.00021078,2]
[387162933,1758599482706,-400.0,0.00021078,2]
[387162934,1758599482717,-496.76,0.00021078,2]
[387162935,1758599482727,-984.83,0.00021078,2]
[387162936,1758599482738,-431.67364268,0.00021078,2]
[387162937,1758599482749,-477.74014567,0.00021078,2]
[387162938,1758599482762,-630.46,0.00021078,2]
[387162939,1758599482775,-841.77,0.00021078,2]
[387162940,1758599482787,-400.0,0.00021078,2]
[387162941,1758599482799,-400.0,0.00021078,2]
[387162942,1758599482812,-657.03,0.00021078,2]
[387162943,1758599482824,-400.0,0.00021078,2]
[387162944,1758599482837,-400.0,0.00021078,2]
[387162945,1758599482850,-795.06,0.00021078,2]
[387162946,1758599482864,-656.19,0.00021078,2]
[387162947,1758599482877,-413.66,0.00021078,2]
[387162948,1758599482889,-400.0,0.00021078,2]
[387162949,1758599482902,-1766.09,0.00021078,2]
[387162950,1758599482914,-603.3,0.00021078,2]
[387162951,1758599482928,-400.0,0.00021078,2]
[387162952,1758599482940,-436.27,0.00021078,2]
[387162953,1758599482952,-403.07,0.00021078,2]
[387162954,1758599482964,-400.0,0.00021078,2]
[387162955,1758599482977,-539.02,0.00021078,2]
[387162956,1758599482988,-478.59,0.00021078,2]
[387162957,1758599483000,-623.54,0.00021078,2]
[387162958,1758599483012,-727.02,0.00021078,2]
[387162959,1758599483023,-400.0,0.00021078,2]
[387162960,1758599483036,-425.68,0.00021078,2]
[387162961,1758599483048,-400.0,0.00021078,2]
[387162962,1758599483058,-400.0,0.00021078,2]
[387162963,1758599483280,-905.96,0.00021078,2]
[387162964,1758599483293,-404.82154571,0.00021078,2]
[387162965,1758599483304,-900.82,0.00021078,2]
[387162966,1758599483317,-1292.05,0.00021078,2]
[387162967,1758599483329,-410.74,0.00021078,2]
[387162968,1758599483341,-400.0,0.00021078,2]
[387162969,1758599483352,-400.0,0.00021078,2]
[387162970,1758599483363,-400.0,0.00021078,2]
[387162971,1758599483375,-494.34832123,0.00021078,2]
[387162972,1758599483386,-400.0,0.00021078,2]
[387162973,1758599483397,-471.49,0.00021078,2]
[387162974,1758599483407,-400.0,0.00021078,2]
[387162975,1758599483418,-400.0,0.00021078,2]
[387162976,1758599483430,-400.0,0.00021078,2]
[387162977,1758599483441,-400.0,0.00021078,2]
[387162978,1758599483452,-169.15895187,0.00021078,2]
[387162979,1758599483464,-811.28,0.00021078,2]
[387162980,1758599483476,-609.51,0.00021078,2]